[Event "17th Memorial Lezcano Montalvo 2025"]
[Site "Gran Canaria"]
[Date "2025.04.18"]
[Round "7.47"]
[White "Pinilla Sanchez, Josep A."]
[Black "Murashkin, Roman G"]
[Result "0-1"]
[Annotator "ChessBase"]
[ECO "A11"]
[WhiteElo "1827"]
[BlackElo "2129"]
[PlyCount "87"]
[EventDate "2025.04.13"]
[EventType "swiss"]
[EventCountry "ESP"]
[SourceTitle "playchess.com"]
[Source "ChessBase"]
[SourceQuality "1"]
[TimeControl "5400+30"]

1. Nf3 {[%emt 0:00:07]} d5 {[%emt 0:00:06]} 2. g3 {[%emt 0:00:23]} Nf6 {[%emt 0:00:27]} 3. Bg2 {[%emt 0:00:15]} Bf5 {[%emt 0:00:10]} 4. O-O {[%emt 0:00:58]} e6 {[%emt 0:00:10]} 5. c4 {[%emt 0:00:50]} c6 {[%emt 0:00:10]} 6. Qb3 {[%emt 0:01:36]} Qc8 {[%emt 0:00:25]} 7. d3 {[%emt 0:01:21]} h6 {[%emt 0:01:07]} 8. Nc3 {[%emt 0:00:46]} Be7 {[%emt 0:02:51]} 9. cxd5 {[%emt 0:01:37]} exd5 {[%emt 0:00:13]} 10. Qc2 {[%emt 0:00:10]} O-O {[%emt 0:01:15]} 11. e4 {[%emt 0:00:31]} Be6 {[%emt 0:00:58]} 12. e5 {[%emt 0:05:35]} Nfd7 {[%emt 0:02:07]} 13. d4 {[%emt 0:02:43]} Nb6 {[%emt 0:04:24]} 14. Bf4 {[%emt 0:05:42]} Bh3 {[%emt 0:06:02]} 15. Rac1 {[%emt 0:01:12]} Bxg2 {[%emt 0:00:59]} 16. Kxg2 {[%emt 0:00:13]} Na6 {[%emt 0:04:51]} 17. a3 {[%emt 0:03:37]} Qe6 {[%emt 0:04:38]} 18. Rfe1 {[%emt 0:03:43]} Rfc8 {[%emt 0:03:56]} 19. Qe2 {[%emt 0:09:15]} Nc7 {[%emt 1:05:11]} 20. Rc2 {[%emt 0:59:56]} Qf5 {[%emt 0:00:30]} 21. Rd1 {[%emt 0:00:00]} Ne6 {[%emt 0:00:00]} 22. Bc1 {[%emt 0:00:00]} Rf8 {[%emt 0:01:00]} 23. Qd3 {[%emt 0:00:00]} Qh5 {[%emt 0:00:00]} 24. h3 {[%emt 0:00:00]} f5 {[%emt 0:00:00]} 25. exf6 {[%emt 0:00:00]} Rxf6 {[%emt 0:00:00]} 26. g4 {[%emt 0:00:00]} Qf7 {[%emt 0:00:00]} 27. Ne5 {[%emt 0:00:00]} Qf8 {[%emt 0:00:00]} 28. Ng6 {[%emt 0:00:00]} Qe8 {[%emt 0:00:00]} 29. Ne5 {[%emt 0:00:00]} Nd7 {[%emt 0:00:00]} 30. Re1 {[%emt 0:00:00]} Nxe5 {[%emt 0:00:00]} 31. Rxe5 {[%emt 0:00:00]} Bd6 {[%emt 0:00:00]} 32. Ree2 {[%emt 0:00:00]} Bf4 {[%emt 0:00:00]} 33. Kg1 {[%emt 0:00:00]} Qf7 {[%emt 0:00:00]} 34. Be3 {[%emt 0:00:00]} Rf8 {[%emt 0:00:00]} 35. Nd1 {[%emt 0:00:00]} Ng5 {[%emt 0:00:00]} 36. Bxf4 {[%emt 0:00:00]} Rxf4 {[%emt 0:00:00]} 37. Re3 {[%emt 0:00:00]} Ne4 {[%emt 0:00:00]} 38. Qf1 {[%emt 0:00:00]} h5 {[%emt 0:00:00]} 39. Qg2 {[%emt 0:00:00]} hxg4 {[%emt 0:00:00]} 40. hxg4 {[%emt 0:00:00]} Qg6 {[%emt 0:00:00]} 41. f3 {[%emt 0:00:00]} Nf6 {[%emt 0:00:00]} 42. Rd2 {[%emt 0:00:00]} Nxg4 {[%emt 0:00:00]} 43. fxg4 {[%emt 0:00:58]} Rxg4 {[%emt 0:00:00]} 44. Nc3 {[%emt 0:02:13]} 0-1

[Event "17th Memorial Lezcano Montalvo 2025"]
[Site "Gran Canaria"]
[Date "2025.04.18"]
[Round "7.48"]
[White "Hernandez De Armas, Leonardo"]
[Black "Hernandez Guerra, Luna Yue"]
[Result "0-1"]
[Annotator "NA"]
[ECO "B19"]
[WhiteElo "1645"]
[BlackElo "1897"]
[PlyCount "58"]
[EventDate "2025.04.13"]
[EventType "swiss"]
[EventCountry "ESP"]
[SourceTitle "playchess.com"]
[Source "ChessBase"]
[SourceQuality "1"]
[TimeControl "5400+30"]

1. e4 {[%emt 0:00:03]} c6 {[%emt 0:00:04]} 2. d4 {[%emt 0:00:08]} d5 {[%emt 0:00:04]} 3. Nc3 {[%emt 0:00:07]} dxe4 {[%emt 0:00:04]} 4. Nxe4 {[%emt 0:00:10]} Bf5 {[%emt 0:00:06]} 5. Ng3 {[%emt 0:00:16]} Bg6 {[%emt 0:00:06]} 6. h4 {[%emt 0:00:18]} h6 {[%emt 0:00:06]} 7. Nf3 {[%emt 0:00:12]} e6 {[%emt 0:00:18]} 8. Bd3 {[%emt 0:00:25]} Bxd3 {[%emt 0:00:29]} 9. Qxd3 {[%emt 0:00:12]} Nf6 {[%emt 0:00:50]} 10. Bf4 {[%emt 0:02:44]} Bb4+ {[%emt 0:05:03]} 11. c3 {[%emt 0:00:21]} Be7 {[%emt 0:00:05]} 12. O-O-O {[%emt 0:05:20]} Nbd7 {[%emt 0:02:29]} 13. Ne4 {[%emt 0:03:56]} Nxe4 {[%emt 0:06:26]} 14. Qxe4 {[%emt 0:00:18]} Qa5 {[%emt 0:00:06]} 15. Kb1 {[%emt 0:02:44]} Nf6 {[%emt 0:06:12]} 16. Qd3 {[%emt 0:04:39]} O-O {[%emt 0:05:27]} 17. Rdg1 {[%emt 0:08:11]} Qf5 {[%emt 0:00:32]} 18. Qxf5 {[%emt 0:00:11]} exf5 {[%emt 0:00:04]} 19. Re1 {[%emt 0:04:18]} Rfe8 {[%emt 0:02:50]} 20. Re2 {[%emt 0:02:29]} Ne4 {[%emt 0:13:59]} 21. Bc1 {[%emt 0:11:22]} Bf6 {[%emt 0:11:41]} 22. Rhe1 {[%emt 0:08:52]} Re6 {[%emt 0:00:35]} 23. Be3 {[%emt 0:02:42]} Rae8 {[%emt 0:01:29]} 24. d5 {[%emt 0:03:31]} cxd5 {[%emt 0:00:46]} 25. Nd4 {[%emt 0:00:14]} Bxd4 {[%emt 0:00:29]} 26. cxd4 {[%emt 0:00:31]} Nf6 {[%emt 0:03:31]} 27. g3 {[%emt 0:01:06]} g5 {[%emt 0:00:39]} 28. hxg5 {[%emt 0:01:14]} hxg5 {[%emt 0:00:12]} 29. f4 {[%emt 0:00:06]} Ng4 {[%emt 0:00:10]} 0-1

[Event "17th Memorial Lezcano Montalvo 2025"]
[Site "Gran Canaria"]
[Date "2025.04.18"]
[Round "7.49"]
[White "Cabrera Martel, Isaac"]
[Black "Bangiev, Katharina"]
[Result "0-1"]
[Annotator "NA"]
[ECO "D00"]
[WhiteElo "1655"]
[BlackElo "1848"]
[PlyCount "72"]
[EventDate "2025.04.13"]
[EventType "swiss"]
[EventCountry "ESP"]
[SourceTitle "playchess.com"]
[Source "ChessBase"]
[SourceQuality "1"]
[TimeControl "5400+30"]

1. d4 {[%emt 0:00:03]} Nf6 {[%emt 0:00:09]} 2. Nc3 {[%emt 0:00:06]} d5 {[%emt 0:00:05]} 3. Bf4 {[%emt 0:00:09]} g6 {[%emt 0:00:37]} 4. e3 {[%emt 0:00:09]} a6 {[%emt 0:02:42]} 5. h4 {[%emt 0:03:59]} h5 {[%emt 0:02:11]} 6. Nf3 {[%emt 0:04:21]} Bg7 {[%emt 0:01:19]} 7. Be2 {[%emt 0:05:06]} c5 {[%emt 0:10:21]} 8. Ne5 {[%emt 1:20:37]} Nc6 {[%emt 0:06:40]} 9. Bf3 {[%emt 0:00:00]} O-O {[%emt 0:07:02]} 10. O-O {[%emt 0:00:00]} cxd4 {[%emt 0:04:42]} 11. exd4 {[%emt 0:00:00]} Bf5 {[%emt 0:02:54]} 12. a3 {[%emt 0:00:00]} Qb6 {[%emt 0:10:48]} 13. Nxd5 {[%emt 0:00:00]} Nxd5 {[%emt 0:01:02]} 14. Bxd5 {[%emt 0:00:00]} Nxd4 {[%emt 0:20:30]} 15. Bb3 {[%emt 0:00:00]} Rad8 {[%emt 0:03:30]} 16. Nc4 {[%emt 0:00:00]} Qb5 {[%emt 0:03:54]} 17. a4 {[%emt 0:00:00]} Qb4 {[%emt 0:03:37]} 18. Bd2 {[%emt 0:00:00]} Qc5 {[%emt 0:00:50]} 19. Qe1 {[%emt 0:00:00]} Bxc2 {[%emt 0:01:26]} 20. Bb4 {[%emt 0:00:00]} Qc6 {[%emt 0:04:19]} 21. Na5 {[%emt 0:00:00]} Qd7 {[%emt 0:02:03]} 22. Bxc2 {[%emt 0:04:41]} Nxc2 {[%emt 0:00:08]} 23. Qxe7 {[%emt 0:00:07]} Rfe8 {[%emt 0:02:20]} 24. Qxd7 {[%emt 0:02:31]} Rxd7 {[%emt 0:00:03]} 25. Rfd1 {[%emt 0:00:21]} Rxd1+ {[%emt 0:00:17]} 26. Rxd1 {[%emt 0:00:02]} Nxb4 {[%emt 0:00:03]} 27. Nxb7 {[%emt 0:00:37]} Bxb2 {[%emt 0:02:40]} 28. Nc5 {[%emt 0:00:24]} Rc8 {[%emt 0:01:04]} 29. Ne4 {[%emt 0:00:38]} Rc1 {[%emt 0:00:28]} 30. Rxc1 {[%emt 0:01:03]} Bxc1 {[%emt 0:00:02]} 31. Kf1 {[%emt 0:00:29]} Kf8 {[%emt 0:00:29]} 32. Ke2 {[%emt 0:00:13]} Ke7 {[%emt 0:01:02]} 33. Kd1 {[%emt 0:00:33]} Bb2 {[%emt 0:00:36]} 34. Kd2 {[%emt 0:00:36]} Bd4 {[%emt 0:00:22]} 35. f3 {[%emt 0:00:26]} f5 {[%emt 0:00:42]} 36. Ng5 {[%emt 0:00:32]} Bf2 {[%emt 0:00:46]} 0-1

[Event "17th Memorial Lezcano Montalvo 2025"]
[Site "Gran Canaria"]
[Date "2025.04.18"]
[Round "7.50"]
[White "Schmitz, Manuela"]
[Black "Morell Rojas, Samuel"]
[Result "1-0"]
[Annotator "NA"]
[ECO "D52"]
[WhiteElo "1815"]
[BlackElo "1652"]
[PlyCount "122"]
[EventDate "2025.04.13"]
[EventType "swiss"]
[EventCountry "ESP"]
[SourceTitle "playchess.com"]
[Source "ChessBase"]
[SourceQuality "1"]
[TimeControl "5400+30"]

1. d4 {[%emt 0:00:02]} d5 {[%emt 0:00:13]} 2. Nf3 {[%emt 0:00:06]} Nf6 {[%emt 0:00:14]} 3. c4 {[%emt 0:00:10]} e6 {[%emt 0:00:07]} 4. Bg5 {[%emt 0:00:20]} Nbd7 {[%emt 0:00:08]} 5. e3 {[%emt 0:00:23]} c6 {[%emt 0:00:06]} 6. Nc3 {[%emt 0:01:49]} Qa5 {[%emt 0:01:09]} 7. Nd2 {[%emt 0:00:47]} Bb4 {[%emt 0:00:34]} 8. Qc2 {[%emt 0:00:09]} O-O {[%emt 0:01:33]} 9. Be2 {[%emt 0:00:27]} dxc4 {[%emt 0:00:34]} 10. Bxf6 {[%emt 0:00:31]} Nxf6 {[%emt 0:00:12]} 11. Nxc4 {[%emt 0:00:45]} Qc7 {[%emt 0:01:09]} 12. O-O {[%emt 0:00:57]} Rd8 {[%emt 0:01:51]} 13. Ne5 {[%emt 0:04:40]} c5 {[%emt 0:03:05]} 14. Nb5 {[%emt 0:02:44]} Qb8 {[%emt 0:01:40]} 15. a3 {[%emt 0:12:06]} Ba5 {[%emt 0:07:18]} 16. Qxc5 {[%emt 0:07:41]} a6 {[%emt 0:02:28]} 17. Nc3 {[%emt 0:02:49]} b5 {[%emt 0:01:57]} 18. Nc6 {[%emt 0:03:42]} Qc7 {[%emt 0:04:40]} 19. Nxd8 {[%emt 0:01:05]} Qxd8 {[%emt 0:00:05]} 20. Bf3 {[%emt 0:00:53]} Rb8 {[%emt 0:01:58]} 21. Rac1 {[%emt 0:01:37]} g6 {[%emt 0:02:15]} 22. Qg5 {[%emt 0:02:14]} Bd7 {[%emt 0:01:39]} 23. b4 {[%emt 0:03:50]} Bc7 {[%emt 0:02:58]} 24. Ne4 {[%emt 0:01:18]} Nxe4 {[%emt 0:00:53]} 25. Qxd8+ {[%emt 0:00:07]} Bxd8 {[%emt 0:00:46]} 26. Bxe4 {[%emt 0:00:12]} a5 {[%emt 0:01:15]} 27. Rc2 {[%emt 0:02:49]} Be7 {[%emt 0:02:26]} 28. Rc7 {[%emt 0:00:33]} Rd8 {[%emt 0:00:21]} 29. bxa5 {[%emt 0:01:54]} Bxa3 {[%emt 0:01:41]} 30. a6 {[%emt 0:00:31]} Bd6 {[%emt 0:01:04]} 31. Rcc1 {[%emt 0:06:22]} Bb8 {[%emt 0:00:30]} 32. Bc6 {[%emt 0:00:29]} Kg7 {[%emt 0:03:58]} 33. Bxd7 {[%emt 0:00:33]} Rxd7 {[%emt 0:00:01]} 34. Rc5 {[%emt 0:02:05]} b4 {[%emt 0:01:18]} 35. Rb5 {[%emt 0:00:36]} Bd6 {[%emt 0:05:13]} 36. Rb6 {[%emt 0:00:33]} Be7 {[%emt 0:02:21]} 37. Rb7 {[%emt 0:00:14]} Rxb7 {[%emt 0:00:29]} 38. axb7 {[%emt 0:00:06]} Bd6 {[%emt 0:00:08]} 39. Rb1 {[%emt 0:00:11]} Kf6 {[%emt 0:00:22]} 40. Rxb4 {[%emt 0:00:20]} Bb8 {[%emt 0:01:50]} 41. Rc4 {[%emt 0:00:14]} h5 {[%emt 0:00:06]} 42. Rc8 {[%emt 0:00:10]} Bd6 {[%emt 0:00:11]} 43. b8=Q {[%emt 0:00:09]} Bxb8 {[%emt 0:00:02]} 44. Rxb8 {[%emt 0:00:09]} h4 {[%emt 0:00:15]} 45. f3 {[%emt 0:00:20]} g5 {[%emt 0:00:05]} 46. Kf2 {[%emt 0:00:09]} Kf5 {[%emt 0:00:18]} 47. e4+ {[%emt 0:00:13]} Kf6 {[%emt 0:00:04]} 48. Ke3 {[%emt 0:00:11]} Ke7 {[%emt 0:00:06]} 49. g3 {[%emt 0:00:10]} hxg3 {[%emt 0:00:05]} 50. hxg3 {[%emt 0:00:05]} Kf6 {[%emt 0:00:08]} 51. g4 {[%emt 0:00:26]} Ke7 {[%emt 0:00:05]} 52. d5 {[%emt 0:00:17]} exd5 {[%emt 0:00:07]} 53. exd5 {[%emt 0:00:07]} Kd6 {[%emt 0:00:08]} 54. Kd4 {[%emt 0:00:07]} f6 {[%emt 0:00:03]} 55. Rb6+ {[%emt 0:00:11]} Ke7 {[%emt 0:00:04]} 56. Kc5 {[%emt 0:00:15]} Kf7 {[%emt 0:00:54]} 57. Kc6 {[%emt 0:00:10]} Ke7 {[%emt 0:00:08]} 58. Kc7 {[%emt 0:00:12]} Kf7 {[%emt 0:00:08]} 59. d6 {[%emt 0:00:09]} Ke8 {[%emt 0:00:06]} 60. d7+ {[%emt 0:00:21]} Kf7 {[%emt 0:00:33]} 61. d8=Q {[%emt 0:00:12]} Kg6 {[%emt 0:54:55]} 1-0

[Event "17th Memorial Lezcano Montalvo 2025"]
[Site "Gran Canaria"]
[Date "2025.04.18"]
[Round "7.51"]
[White "Angulo Diaz, Dario"]
[Black "Vargas Tinoco, Martin Alonso"]
[Result "0-1"]
[Annotator "NA"]
[ECO "D31"]
[WhiteElo "1568"]
[BlackElo "1811"]
[PlyCount "97"]
[EventDate "2025.04.13"]
[EventType "swiss"]
[EventCountry "ESP"]
[SourceTitle "playchess.com"]
[Source "ChessBase"]
[SourceQuality "1"]
[TimeControl "5400+30"]

1. d4 {[%emt 0:00:02]} d5 {[%emt 0:00:08]} 2. c4 {[%emt 0:00:06]} e6 {[%emt 0:00:06]} 3. Nc3 {[%emt 0:00:05]} a6 {[%emt 0:00:06]} 4. a4 {[%emt 0:00:08]} Nf6 {[%emt 0:00:41]} 5. Nf3 {[%emt 0:00:22]} Nc6 {[%emt 0:00:57]} 6. Bg5 {[%emt 0:00:24]} dxc4 {[%emt 0:01:13]} 7. e4 {[%emt 0:00:21]} Na5 {[%emt 0:04:55]} 8. e5 {[%emt 0:04:11]} h6 {[%emt 0:00:24]} 9. Bd2 {[%emt 0:00:17]} Nd5 {[%emt 0:16:28]} 10. Nxd5 {[%emt 0:02:05]} Qxd5 {[%emt 0:00:08]} 11. Rc1 {[%emt 0:09:13]} Bd7 {[%emt 0:24:14]} 12. Qc2 {[%emt 0:05:22]} Bc6 {[%emt 0:01:05]} 13. Bxc4 {[%emt 0:01:03]} Nxc4 {[%emt 0:00:06]} 14. Qxc4 {[%emt 0:00:16]} Qe4+ {[%emt 0:00:22]} 15. Be3 {[%emt 0:00:44]} Qg4 {[%emt 0:02:04]} 16. Rf1 {[%emt 0:16:16]} Qxg2 {[%emt 0:03:28]} 17. Nd2 {[%emt 0:09:15]} Qd5 {[%emt 0:01:02]} 18. b3 {[%emt 0:08:51]} a5 {[%emt 0:05:52]} 19. Qxd5 {[%emt 0:03:20]} exd5 {[%emt 0:00:36]} 20. f4 {[%emt 0:00:14]} Bb4 {[%emt 0:00:31]} 21. f5 {[%emt 0:00:46]} Kd7 {[%emt 0:04:46]} 22. Kd1 {[%emt 0:01:14]} Bxd2 {[%emt 0:00:15]} 23. Kxd2 {[%emt 0:00:22]} Rae8 {[%emt 0:09:09]} 24. h4 {[%emt 0:03:36]} Kc8 {[%emt 0:03:42]} 25. Rg1 {[%emt 0:01:21]} Rh7 {[%emt 0:00:23]} 26. Rc5 {[%emt 0:02:26]} Bd7 {[%emt 0:01:43]} 27. Rgc1 {[%emt 0:02:28]} Bc6 {[%emt 0:01:28]} 28. Rh1 {[%emt 0:02:05]} Kb8 {[%emt 0:02:08]} 29. Ke2 {[%emt 0:00:49]} g6 {[%emt 0:00:36]} 30. Kf3 {[%emt 0:02:53]} gxf5 {[%emt 0:00:19]} 31. Kf4 {[%emt 0:00:12]} f6 {[%emt 0:00:14]} 32. Kxf5 {[%emt 0:01:01]} fxe5 {[%emt 0:00:07]} 33. Kg6 {[%emt 0:01:27]} Rhe7 {[%emt 0:00:30]} 34. Kxh6 {[%emt 0:01:35]} exd4 {[%emt 0:02:18]} 35. Bxd4 {[%emt 0:00:32]} Re4 {[%emt 0:00:20]} 36. Bc3 {[%emt 0:01:27]} R8e6+ {[%emt 0:00:12]} 37. Kg5 {[%emt 0:00:18]} b6 {[%emt 0:00:09]} 38. h5 {[%emt 0:02:53]} bxc5 {[%emt 0:00:23]} 39. h6 {[%emt 0:00:09]} d4 {[%emt 0:01:18]} 40. h7 {[%emt 0:01:13]} Re8 {[%emt 0:04:13]} 41. Bxa5 {[%emt 0:02:04]} R4e5+ {[%emt 0:00:40]} 42. Kf4 {[%emt 0:00:36]} Bxh1 {[%emt 0:00:11]} 43. h8=Q {[%emt 0:00:21]} Rf8+ {[%emt 0:00:07]} 44. Kxe5 {[%emt 0:00:03]} Rd8 {[%emt 0:00:19]} 45. Kf4 {[%emt 0:00:35]} Bd5 {[%emt 0:00:00]} 46. b4 {[%emt 0:00:50]} c4 {[%emt 0:00:00]} 47. b5 {[%emt 0:00:18]} c3 {[%emt 0:00:00]} 48. b6 {[%emt 0:00:11]} Ba8 {[%emt 0:00:00]} 49. Kf5 {[%emt 0:02:16]} 0-1

[Event "17th Memorial Lezcano Montalvo 2025"]
[Site "Gran Canaria"]
[Date "2025.04.18"]
[Round "7.52"]
[White "Oramas Medina, Miguel"]
[Black "Roca Marrero, Fernando"]
[Result "1-0"]
[Annotator "NA RC"]
[ECO "C41"]
[WhiteElo "1796"]
[BlackElo "1617"]
[PlyCount "81"]
[EventDate "2025.04.13"]
[EventType "swiss"]
[EventCountry "ESP"]
[SourceTitle "playchess.com"]
[Source "ChessBase"]
[SourceQuality "1"]
[TimeControl "5400+30"]

1. e4 {[%emt 0:00:03]} d6 {[%emt 0:00:34]} 2. d4 {[%emt 0:00:09]} Nf6 {[%emt 0:00:55]} 3. Nc3 {[%emt 0:00:25]} Nbd7 {[%emt 0:00:29]} 4. Be3 {[%emt 0:04:20]} e5 {[%emt 0:00:11]} 5. Nf3 {[%emt 0:08:04]} Be7 {[%emt 0:00:08]} 6. Be2 {[%emt 0:00:31]} a6 {[%emt 0:00:10]} 7. a4 {[%emt 0:05:35]} b6 {[%emt 0:00:14]} 8. O-O {[%emt 0:01:42]} O-O {[%emt 0:01:06]} 9. Nd2 {[%emt 0:10:01]} Bb7 {[%emt 0:03:11]} 10. f4 {[%emt 0:00:14]} exd4 {[%emt 0:08:17]} 11. Bxd4 {[%emt 0:00:06]} Re8 {[%emt 0:01:48]} 12. e5 {[%emt 0:06:33]} Nd5 {[%emt 0:12:29]} 13. exd6 {[%emt 0:08:38]} Bf6 {[%emt 0:03:15]} 14. Bxf6 {[%emt 0:07:26]} N7xf6 {[%emt 0:00:38]} 15. dxc7 {[%emt 0:44:13]} Qxc7 {[%emt 1:04:35]} 16. Nxd5 {[%emt 0:00:00]} Nxd5 {[%emt 0:00:00]} 17. Rf2 {[%emt 0:00:00]} Ne3 {[%emt 0:00:00]} 18. Qc1 {[%emt 0:00:00]} Rac8 {[%emt 0:00:00]} 19. c3 {[%emt 0:00:00]} Qd6 {[%emt 0:00:00]} 20. g3 {[%emt 0:00:00]} Qg6 {[%emt 0:00:00]} 21. Nf3 {[%emt 0:00:00]} Qe4 {[%emt 0:00:00]} 22. h3 {[%emt 0:00:00]} Nf5 {[%emt 0:00:00]} 23. Kh2 {[%emt 0:00:00]} Qe3 {[%emt 0:00:00]} 24. Qxe3 {[%emt 0:00:00]} Rxe3 {[%emt 0:00:00]} 25. g4 {[%emt 0:00:00]} Bxf3 {[%emt 0:00:00]} 26. Bxf3 {[%emt 0:00:00]} Ne7 {[%emt 0:00:00]} 27. Bb7 {[%emt 0:00:00]} a5 {[%emt 0:00:00]} 28. Bxc8 {[%emt 0:00:00]} Nxc8 {[%emt 0:00:00]} 29. Rd1 {[%emt 0:00:00]} Re8 {[%emt 0:00:00]} 30. Rfd2 {[%emt 0:00:00]} Ne7 {[%emt 0:01:25]} 31. Rd8 {[%emt 0:00:00]} Kf8 {[%emt 0:00:00]} 32. Rxe8+ {[%emt 0:00:00]} Kxe8 {[%emt 0:00:00]} 33. Kg3 {[%emt 0:00:25]} f5 {[%emt 0:00:46]} 34. Kf3 {[%emt 0:00:36]} g6 {[%emt 0:01:11]} 35. gxf5 {[%emt 0:00:36]} Nxf5 {[%emt 0:00:36]} 36. b4 {[%emt 0:00:26]} axb4 {[%emt 0:00:11]} 37. cxb4 {[%emt 0:00:07]} Ke7 {[%emt 0:00:44]} 38. a5 {[%emt 0:00:36]} Nd6 {[%emt 0:01:20]} 39. axb6 {[%emt 0:00:22]} Kd7 {[%emt 0:00:05]} 40. b7 {[%emt 0:00:13]} Kc7 {[%emt 0:00:02]} 41. Rxd6 {[%emt 0:00:13]} 1-0

[Event "17th Memorial Lezcano Montalvo 2025"]
[Site "Gran Canaria"]
[Date "2025.04.18"]
[Round "7.53"]
[White "Alonso Galvez, Ana Belen"]
[Black "Sanchez Ramirez, Gustavo"]
[Result "0-1"]
[Annotator "NA"]
[ECO "B45"]
[WhiteElo "1554"]
[BlackElo "1780"]
[PlyCount "92"]
[EventDate "2025.04.13"]
[EventType "swiss"]
[EventCountry "ESP"]
[SourceTitle "playchess.com"]
[Source "ChessBase"]
[SourceQuality "1"]
[TimeControl "5400+30"]

1. e4 {[%emt 0:00:02]} c5 {[%emt 1:31:00]} 2. Nf3 {[%emt 0:01:20]} e6 {[%emt 0:00:00]} 3. d4 {[%emt 0:01:01]} cxd4 {[%emt 0:00:00]} 4. Nxd4 {[%emt 0:00:09]} Bc5 {[%emt 0:00:00]} 5. Nc3 {[%emt 0:01:31]} Nc6 {[%emt 0:00:00]} 6. Be3 {[%emt 0:01:29]} Qf6 {[%emt 0:00:00]} 7. Ncb5 {[%emt 0:02:02]} Bxd4 {[%emt 0:00:00]} 8. Bxd4 {[%emt 0:01:23]} Nxd4 {[%emt 0:00:00]} 9. Nc7+ {[%emt 0:00:30]} Kd8 {[%emt 0:00:00]} 10. Nxa8 {[%emt 0:00:21]} Qe5 {[%emt 0:00:00]} 11. Qd3 {[%emt 0:04:02]} Nf6 {[%emt 0:00:00]} 12. O-O-O {[%emt 0:02:19]} Nc6 {[%emt 0:00:00]} 13. Re1 {[%emt 0:06:47]} Qb8 {[%emt 0:00:00]} 14. Qg3 {[%emt 0:00:08]} Qxg3 {[%emt 0:00:00]} 15. hxg3 {[%emt 0:01:09]} b6 {[%emt 0:00:00]} 16. f3 {[%emt 0:02:12]} Bb7 {[%emt 0:00:00]} 17. e5 {[%emt 0:01:01]} Ne8 {[%emt 0:00:00]} 18. Nxb6 {[%emt 0:02:02]} axb6 {[%emt 0:00:00]} 19. Bd3 {[%emt 0:00:34]} h6 {[%emt 0:00:00]} 20. g4 {[%emt 0:00:28]} Nc7 {[%emt 0:00:00]} 21. g5 {[%emt 0:00:19]} Nb4 {[%emt 0:00:00]} 22. a3 {[%emt 0:00:55]} Nxd3+ {[%emt 0:00:00]} 23. cxd3 {[%emt 0:00:07]} Nd5 {[%emt 0:00:00]} 24. Rh4 {[%emt 0:01:49]} Ke7 {[%emt 0:00:00]} 25. Kd2 {[%emt 0:02:37]} h5 {[%emt 0:00:00]} 26. Rc1 {[%emt 0:03:56]} g6 {[%emt 0:00:00]} 27. Rcc4 {[%emt 0:02:26]} Ra8 {[%emt 0:00:00]} 28. g4 {[%emt 0:05:23]} hxg4 {[%emt 0:00:00]} 29. Rhxg4 {[%emt 0:00:10]} b5 {[%emt 0:00:00]} 30. Rc5 {[%emt 0:00:21]} Bc6 {[%emt 0:00:00]} 31. Rd4 {[%emt 0:03:08]} Rh8 {[%emt 0:00:00]} 32. Re4 {[%emt 0:02:41]} Rh3 {[%emt 0:00:00]} 33. b3 {[%emt 0:02:05]} Rxf3 {[%emt 0:00:00]} 34. a4 {[%emt 0:00:08]} bxa4 {[%emt 0:00:00]} 35. bxa4 {[%emt 0:00:10]} Rf2+ {[%emt 0:00:00]} 36. Ke1 {[%emt 0:01:15]} Ra2 {[%emt 0:00:00]} 37. a5 {[%emt 0:00:21]} Nc7 {[%emt 0:00:00]} 38. Re2 {[%emt 0:00:48]} Ra1+ {[%emt 0:00:00]} 39. Kf2 {[%emt 0:00:22]} Na6 {[%emt 0:00:00]} 40. Rcc2 {[%emt 0:01:03]} Nb4 {[%emt 0:00:00]} 41. Rc3 {[%emt 0:03:50]} Rxa5 {[%emt 0:00:00]} 42. d4 {[%emt 0:01:01]} Nd5 {[%emt 0:00:00]} 43. Rh3 {[%emt 0:01:09]} Nf4 {[%emt 0:00:00]} 44. Ree3 {[%emt 0:00:34]} Nxh3+ {[%emt 0:00:00]} 45. Rxh3 {[%emt 0:00:17]} Ra2+ {[%emt 0:00:00]} 46. Ke1 {[%emt 0:00:07]} Rg2 {[%emt 0:00:00]} 0-1

[Event "17th Memorial Lezcano Montalvo 2025"]
[Site "Gran Canaria"]
[Date "2025.04.18"]
[Round "7.54"]
[White "Martinez Correa, Rafael"]
[Black "Trocoli Romero, Luis Dingyu"]
[Result "0-1"]
[Annotator "NA"]
[ECO "B10"]
[WhiteElo "1719"]
[BlackElo "1599"]
[PlyCount "86"]
[EventDate "2025.04.13"]
[EventType "swiss"]
[EventCountry "ESP"]
[SourceTitle "playchess.com"]
[Source "ChessBase"]
[SourceQuality "1"]
[TimeControl "5400+30"]

1. e4 {[%emt 0:00:02]} c6 {[%emt 0:00:08]} 2. Nf3 {[%emt 0:00:10]} d5 {[%emt 0:00:06]} 3. exd5 {[%emt 0:00:07]} cxd5 {[%emt 0:00:12]} 4. Ne5 {[%emt 0:00:06]} a6 {[%emt 0:00:16]} 5. d4 {[%emt 0:00:10]} Nc6 {[%emt 0:00:12]} 6. c3 {[%emt 0:00:06]} Nxe5 {[%emt 0:00:08]} 7. dxe5 {[%emt 0:00:07]} Qc7 {[%emt 0:00:08]} 8. Bf4 {[%emt 0:02:54]} Bf5 {[%emt 0:00:23]} 9. Bd3 {[%emt 0:01:15]} Bxd3 {[%emt 0:00:14]} 10. Qxd3 {[%emt 0:00:01]} e6 {[%emt 0:00:33]} 11. Nd2 {[%emt 0:00:46]} Bc5 {[%emt 0:02:06]} 12. Nf3 {[%emt 0:00:56]} Ne7 {[%emt 0:00:46]} 13. O-O {[%emt 0:01:11]} Nf5 {[%emt 0:02:02]} 14. Rac1 {[%emt 0:02:24]} b5 {[%emt 0:08:44]} 15. Nd4 {[%emt 0:02:53]} Bxd4 {[%emt 0:01:54]} 16. cxd4 {[%emt 0:00:16]} Qb6 {[%emt 0:00:11]} 17. Rc5 {[%emt 0:01:44]} Kd7 {[%emt 0:05:49]} 18. Rfc1 {[%emt 0:01:58]} Rac8 {[%emt 0:00:23]} 19. Be3 {[%emt 0:09:44]} Rxc5 {[%emt 0:29:13]} 20. dxc5 {[%emt 0:05:57]} Qc6 {[%emt 0:04:54]} 21. b4 {[%emt 0:04:20]} Nxe3 {[%emt 0:06:46]} 22. Qxe3 {[%emt 0:00:50]} h6 {[%emt 0:00:19]} 23. Qg3 {[%emt 0:01:33]} Rg8 {[%emt 0:01:31]} 24. h3 {[%emt 0:00:56]} Ke7 {[%emt 0:02:02]} 25. Qf4 {[%emt 0:01:54]} Rd8 {[%emt 0:07:16]} 26. Qd4 {[%emt 0:00:09]} Rg8 {[%emt 0:00:24]} 27. Rc3 {[%emt 0:00:08]} Kd7 {[%emt 0:04:33]} 28. Rf3 {[%emt 0:00:49]} Ke8 {[%emt 0:05:19]} 29. Qf4 {[%emt 0:00:40]} Rf8 {[%emt 0:01:54]} 30. Rg3 {[%emt 0:02:58]} Rg8 {[%emt 0:00:46]} 31. Kh2 {[%emt 0:01:53]} Qd7 {[%emt 0:02:06]} 32. Qd4 {[%emt 0:00:26]} Qc6 {[%emt 0:00:10]} 33. Kg1 {[%emt 0:00:22]} Kd7 {[%emt 0:00:19]} 34. h4 {[%emt 0:06:35]} h5 {[%emt 0:03:26]} 35. Qd1 {[%emt 0:01:38]} g6 {[%emt 0:00:10]} 36. Rf3 {[%emt 0:00:37]} Ke8 {[%emt 0:00:48]} 37. Qd4 {[%emt 0:00:37]} Rf8 {[%emt 0:02:34]} 38. Rc3 {[%emt 0:02:36]} Rg8 {[%emt 0:01:05]} 39. Qf4 {[%emt 0:01:37]} Ke7 {[%emt 0:10:10]} 40. Rf3 {[%emt 0:47:05]} Rf8 {[%emt 0:00:30]} 41. Qd4 {[%emt 0:00:30]} Rg8 {[%emt 0:00:30]} 42. Rf6 {[%emt 0:00:30]} Ke8 {[%emt 0:00:30]} 43. Qf4 {[%emt 0:00:30]} Rf8 {[%emt 0:00:30]} 0-1